Workbook

Sheet Datatabell
B1: Träningsdiagram för män
B2: Längd (m) | C2: 1.90 | D2: Obs! Kontrollera dina framsteg för MÅTT, VIKT – BMI, OCH VIKT – KROPPSFETT i respektive diagram och kalkylblad i den här arbetsboken.
B4: Datum | C4: Vikt (kg) | D4: Bröstkorg (cm) | E4: Midja (cm) | F4: Höfter (cm) | G4: Beräknad fettfri vikt (kg) | H4: Beräknad vikt kroppsfett (kg) | I4: Beräknad procent kroppsfett (kg) | J4: Beräknad BMI
B5: =DATE(YEAR(TODAY()),MONTH(TODAY()),1) -> 2018-10-01 | C5: 91.0 | D5: 106.5 | E5: 91.5 | F5: 86.0 | G5: =(1.1*Träning[[#This Row],[Vikt (kg)]])-128*(Träning[[#This Row],[Vikt (kg)]]^2/(100*$C$2)^2) -> 70.7 | H5: =C5-G5 -> 20.3 | I5: =IF(ISERROR((H5*100)/C5),"0.0",(H5*100)/C5)*0.01 -> 22.3% | J5: =(Träning[[#This Row],[Vikt (kg)]]/($C$2*$C$2)) -> 25.2
B6: =DATE(YEAR(TODAY()),MONTH(TODAY()),8) -> 2018-10-08 | C6: 91.0 | D6: 106.5 | E6: 91.5 | F6: 86.0 | G6: =(1.1*Träning[[#This Row],[Vikt (kg)]])-128*(Träning[[#This Row],[Vikt (kg)]]^2/(100*$C$2)^2) -> 70.7 | H6: =C6-G6 -> 20.3 | I6: 22.3% | J6: =(Träning[[#This Row],[Vikt (kg)]]/($C$2*$C$2)) -> 25.2
B7: =DATE(YEAR(TODAY()),MONTH(TODAY()),15) -> 2018-10-15 | C7: 90.5 | D7: 106.5 | E7: 90.0 | F7: 85.0 | G7: =(1.1*Träning[[#This Row],[Vikt (kg)]])-128*(Träning[[#This Row],[Vikt (kg)]]^2/(100*$C$2)^2) -> 70.5 | H7: =C7-G7 -> 20.0 | I7: 22.1% | J7: =(Träning[[#This Row],[Vikt (kg)]]/($C$2*$C$2)) -> 25.1
B8: =DATE(YEAR(TODAY()),MONTH(TODAY()),22) -> 2018-10-22 | C8: 89.5 | D8: 106.5 | E8: 90.0 | F8: 84.0 | G8: =(1.1*Träning[[#This Row],[Vikt (kg)]])-128*(Träning[[#This Row],[Vikt (kg)]]^2/(100*$C$2)^2) -> 70.0 | H8: =C8-G8 -> 19.5 | I8: 21.7% | J8: =(Träning[[#This Row],[Vikt (kg)]]/($C$2*$C$2)) -> 24.8
B9: =DATE(YEAR(TODAY()),MONTH(TODAY()),29) -> 2018-10-29 | C9: 89.5 | D9: 108.0 | E9: 90.0 | F9: 84.0 | G9: =(1.1*Träning[[#This Row],[Vikt (kg)]])-128*(Träning[[#This Row],[Vikt (kg)]]^2/(100*$C$2)^2) -> 70.0 | H9: =C9-G9 -> 19.5 | I9: 21.7% | J9: =(Träning[[#This Row],[Vikt (kg)]]/($C$2*$C$2)) -> 24.8
